bitfinex/quotes_ETHUSD_20241217
["timestamp","ask_amount","ask_price","bid_price","bid_amount"]
[1734463658957,6.40972916,3949.0,3947.4,0.1]
[1734463659257,2.65542916,3948.3,3947.4,0.1]
[1734463659443,2.53294,3948.0,3947.4,0.1]
[1734463659646,0.7543,3947.9,3947.4,0.1]
[1734463660462,2.65542916,3947.8,3947.4,0.1]
[1734463660667,6.28754,3947.5,3947.4,0.1]
[1734463660825,1.90190192,3947.5,3947.4,0.1]
[1734463661160,3.28754,3947.5,3947.4,0.1]
[1734463661325,3.41320559,3947.5,3947.4,0.1]
[1734463662640,0.87996559,3947.5,3947.4,0.1]
[1734463663357,0.12566559,3947.5,3947.4,0.1]
[1734463664084,2.65890559,3947.5,3947.4,0.1]
[1734463664233,0.65709907,3947.5,3947.4,0.1]
[1734463665130,0.53143348,3947.5,3947.4,0.1]
[1734463665363,2.65542916,3947.8,3947.4,0.1]
[1734463666382,5.18849916,3947.8,3947.4,0.1]
[1734463666903,2.65542916,3947.8,3947.4,0.1]
[1734463667473,0.12363927,3947.6,3947.4,0.1]
[1734463669098,2.65542916,3947.8,3947.4,0.1]
[1734463669961,2.93386751,3947.8,3947.4,0.1]
[1734463670796,5.46692751,3947.8,3947.4,0.1]
[1734463671272,2.93386751,3947.8,3947.4,0.1]
[1734463671492,0.8099,3947.7,3947.4,0.1]
[1734463671795,2.53016563,3947.5,3947.4,0.1]
[1734463672013,3.15755894,3947.5,3947.4,0.1]
[1734463673402,0.62739331,3947.5,3947.4,0.1]
[1734463673606,3.16063331,3947.5,3947.4,0.1]
[1734463674105,0.62739331,3947.5,3947.4,0.1]
[1734463675009,0.52739331,3947.5,3947.4,0.1]
[1734463675602,3.18282247,3947.5,3947.4,0.1]
[1734463678600,5.84001194,3947.5,3947.4,0.1]
[1734463679152,6.64991194,3947.5,3947.4,0.1]
[1734463679801,6.64991194,3947.5,3947.4,0.1]
[1734463680420,9.64991194,3947.5,3947.4,0.1]
[1734463683351,12.31191194,3947.5,3947.4,0.1]
[1734463684134,13.35761967,3947.5,3947.4,0.1]
[1734463684692,12.31191194,3947.5,3947.4,0.1]
[1734463685130,13.35761967,3947.5,3947.4,0.1]
[1734463685331,12.31191194,3947.5,3947.4,0.1]
[1734463686010,15.03040401,3947.5,3947.4,0.1]
[1734463686211,2.662,3946.7,3944.1,0.8013]
[1734463686409,4.69649685,3945.9,3944.3,0.8013]
[1734463686719,2.16221685,3945.9,3944.5,0.8013]
[1734463686912,2.16221685,3945.4,3944.5,0.8013]
[1734463690003,5.19758887,3945.3,3944.5,0.8013]
[1734463690291,0.7661,3945.8,3944.5,0.8013]
[1734463690292,2.66292887,3944.9,3944.5,0.8013]
[1734463690408,0.26629289,3944.8,3944.5,0.8013]
[1734463690625,0.26629289,3944.8,3944.1,0.7561]
[1734463690817,2.66292887,3944.9,3944.1,0.7561]
[1734463691940,2.66292887,3945.6,3944.1,0.7561]
[1734463692106,2.66292887,3944.4,3944.1,0.7561]
[1734463692306,2.66292887,3944.4,3944.0,0.1]
[1734463694741,2.5353,3944.3,3944.0,0.1]
[1734463694938,3.05521289,3944.2,3944.0,0.1]
[1734463695263,2.53543,3944.1,3944.0,0.1]
[1734463695471,5.53543,3944.1,3944.0,0.1]
[1734463696006,6.08543,3944.1,3944.0,0.1]
[1734463696228,6.08543,3944.1,3944.0,1e-05]
[1734463696428,5.53549,3944.0,3942.6,0.7561]
[1734463696632,5.19910887,3943.0,3942.6,0.7561]
[1734463697518,2.53597,3943.3,3942.6,0.7561]
[1734463698657,2.66292887,3943.5,3941.0,0.55]
[1734463698831,0.51987389,3943.4,3941.2,0.7561]
[1734463699034,5.19902887,3943.1,3941.2,0.7561]
[1734463699252,2.53652,3942.4,3941.2,0.7561]
[1734463699537,2.66292887,3942.7,3941.2,0.7561]
[1734463699739,2.53659,3942.3,3941.2,0.7561]
[1734463699958,2.53648,3942.5,3941.2,0.7561]
[1734463700141,3.05642089,3942.5,3941.2,0.7561]
[1734463700582,2.53653,3942.4,3941.2,0.7561]
[1734463700757,0.51994089,3942.5,3941.2,0.7561]
[1734463700955,2.5368,3942.0,3941.2,0.7561]
[1734463701475,2.66292887,3942.3,3941.2,0.7561]
[1734463701476,2.53686,3941.9,3941.2,0.7561]
[1734463701646,2.790546,3941.9,3941.2,0.7561]
[1734463701847,0.253686,3941.9,3941.2,0.7561]
[1734463702955,0.51994089,3942.5,3941.2,0.7561]
[1734463703148,2.53636,3942.7,3941.2,0.7561]
[1734463703345,3.7634,3943.0,3941.2,0.7561]
[1734463703741,2.53648,3942.5,3941.2,0.7561]
[1734463704378,3.7634,3943.0,3941.2,0.7561]
[1734463704379,2.53654,3942.4,3941.2,0.7561]
[1734463704581,2.53666,3942.2,3941.2,0.7561]
[1734463704780,3.253666,3942.1,3941.2,0.7561]
[1734463704983,3.12674381,3941.9,3941.2,0.7561]
[1734463705980,0.12674381,3941.9,3941.2,0.7561]
[1734463709261,2.66360381,3941.9,3941.2,0.7561]
[1734463709788,2.78967268,3941.9,3941.2,0.7561]
[1734463709999,2.53705,3941.6,3941.2,0.7561]
[1734463710201,2.53711,3941.5,3941.2,0.7561]
[1734463710498,2.53711,3941.5,3939.3,2.19292238]
[1734463710499,4.70482629,3941.3,3940.7,0.7918]
[1734463711566,2.5371,3941.5,3940.7,0.7918]
[1734463712472,2.53719,3941.4,3940.7,0.7918]
[1734463712906,0.7739,3941.3,3939.3,0.7748]
[1734463713231,2.53734,3941.2,3939.3,0.7748]
[1734463713530,2.53734,3941.2,3938.9,3.0]
[1734463713531,2.53734,3941.2,3939.1,0.7748]
[1734463713667,2.66765497,3941.5,3939.1,0.7748]
[1734463713869,2.53725,3941.3,3939.3,0.7748]
[1734463714379,2.53725,3941.3,3939.5,0.7748]
[1734463714890,2.53417551,3941.3,3939.5,0.7748]
[1734463717176,2.66118062,3941.3,3939.5,0.7748]
[1734463717736,0.12700511,3941.3,3939.7,0.7748]
[1734463717934,0.12700511,3941.3,3939.2,3.05815347]
[1734463717935,0.12700511,3941.3,3939.9,0.7748]
[1734463718087,0.12700511,3941.3,3940.1,0.7748]
[1734463720104,2.53744,3941.0,3940.1,0.7748]
[1734463720304,0.12700511,3941.3,3939.7,0.7748]
[1734463720305,2.66765497,3940.6,3939.7,0.7748]
[1734463720517,2.53776,3940.5,3939.7,0.7748]
[1734463720820,2.66765497,3940.2,3939.7,0.7748]
[1734463721024,2.66765497,3940.2,3936.1,14.1]
[1734463721025,5.20586497,3939.8,3938.9,0.7748]
[1734463721515,2.66765497,3939.8,3938.9,0.7748]
[1734463722119,0.7739,3940.5,3938.9,0.7748]
[1734463722422,2.66765497,3940.4,3939.0,0.7748]
[1734463722840,5.20548497,3940.4,3939.0,0.7748]
[1734463723137,0.5205485,3940.3,3939.0,0.7748]
[1734463724428,2.66765497,3940.4,3939.2,0.7748]
[1734463725242,2.66765497,3940.4,3939.3,0.1108324]
[1734463725540,2.66765497,3940.4,3937.8,3.02538479]
[1734463725541,3.0,3940.9,3938.5,0.55]
[1734463725731,2.5378,3940.5,3938.6,0.7748]
[1734463725911,0.12520505,3939.9,3938.6,0.88563403]
[1734463726140,0.12520505,3939.9,3938.8,0.7748]
[1734463726640,0.12520505,3939.9,3939.0,0.7935]
[1734463726816,0.12520505,3939.9,3939.1,0.11083403]
[1734463727149,0.12520505,3939.9,3939.2,0.90433403]
[1734463727338,0.12520505,3939.9,3939.2,0.7935]
[1734463728245,0.12520505,3939.9,3939.3,0.1109183]
[1734463728445,0.12520505,3939.9,3939.2,0.7935]
[1734463728955,0.12520505,3939.9,3939.3,0.11092114]
[1734463729244,0.12520505,3939.9,3939.2,0.7935]
[1734463729446,0.12520505,3939.9,3939.3,0.11093716]
[1734463729608,0.12520505,3939.9,3939.4,0.7935]
[1734463731051,0.12520505,3939.9,3937.9,0.7935]
[1734463731052,2.53821,3939.8,3937.9,0.7935]
[1734463731263,2.53836,3939.6,3938.1,0.7935]
[1734463731552,2.53836,3939.6,3938.2,0.90445534]
[1734463731751,2.66765497,3939.8,3938.3,0.11095534]
[1734463731942,2.66765497,3939.8,3938.2,0.7935]
[1734463731943,3.0,3939.7,3938.2,0.7935]
[1734463732154,3.0,3939.3,3938.2,0.7935]
[1734463732419,2.53867,3939.1,3938.2,0.7935]
[1734463733158,0.59390127,3939.2,3938.2,0.7935]
[1734463733779,2.53877,3939.0,3938.2,0.7935]
[1734463734625,2.53879,3938.9,3938.2,0.7935]
[1734463734852,2.53866,3939.1,3938.2,0.7935]
[1734463735074,2.85202613,3939.0,3938.2,0.7935]
[1734463735260,0.31325613,3939.0,3938.2,0.7935]
[1734463735483,2.53891,3938.7,3938.2,0.7935]
[1734463736096,2.48346887,3939.0,3938.2,0.7935]
[1734463736266,2.53879,3938.9,3938.2,0.7935]
[1734463736480,0.50222589,3938.8,3938.2,0.7935]
[1734463736652,3.04107589,3938.8,3938.2,0.7935]
[1734463738034,0.50222589,3938.8,3938.2,0.7935]
[1734463739060,2.53866,3939.1,3938.2,0.7935]
[1734463739447,0.71757053,3939.2,3937.1,0.7935]
[1734463739770,2.53873,3939.0,3937.3,0.7935]
[1734463739972,2.53873,3939.0,3937.4,0.90429076]
[1734463740277,2.53873,3939.0,3937.4,0.7935]
[1734463740471,0.32563005,3938.9,3937.4,0.7935]
[1734463740770,2.53886,3938.8,3937.4,0.7935]
[1734463740970,0.32563005,3938.9,3937.4,0.7935]
[1734463741836,2.53905,3938.5,3937.4,0.7935]
[1734463742036,2.17021274,3938.6,3937.4,0.7935]
[1734463742274,3.0,3938.3,3937.4,0.7935]
[1734463742479,2.53924,3938.2,3937.4,0.7935]
[1734463743161,0.12847278,3938.4,3937.4,0.7935]
[1734463743373,2.53936,3938.0,3937.4,0.7935]
[1734463743941,0.55,3937.9,3937.4,0.7935]
[1734463744139,3.0,3938.3,3937.4,0.7935]
[1734463744476,0.55,3938.2,3937.4,0.7935]
[1734463744898,0.55,3938.3,3937.4,0.7935]
[1734463745063,3.55,3938.3,3937.4,0.7935]
[1734463745263,0.55,3938.3,3937.4,0.7935]
[1734463745479,0.12847278,3938.4,3937.6,0.7595]
[1734463745686,0.12847278,3938.4,3937.8,0.7595]
[1734463746595,0.55,3939.0,3937.8,0.7595]
[1734463747159,0.55,3939.4,3937.8,0.7595]
[1734463747372,3.0,3939.2,3937.8,0.7595]
[1734463747600,3.08871,3939.1,3937.8,0.7595]
[1734463747793,0.308871,3939.0,3937.8,0.7595]
[1734463748172,0.55,3938.9,3937.8,0.7595]
[1734463749206,0.55,3939.3,3937.8,0.7595]
[1734463749488,0.12512654,3938.9,3937.8,0.7595]
[1734463750565,0.55,3938.8,3937.8,0.7595]
[1734463750895,0.87137865,3938.8,3937.8,0.7595]
[1734463751594,0.55,3938.8,3937.8,0.7595]
[1734463752322,2.53903,3938.6,3937.8,0.7595]
[1734463752474,0.55,3938.8,3937.8,0.7595]
[1734463753381,0.55,3938.0,3937.8,0.7595]
[1734463755205,0.55,3938.6,3937.8,0.7595]
[1734463755426,0.55,3938.4,3937.8,0.7595]
[1734463755909,0.55,3938.6,3937.8,0.7595]
[1734463756309,0.55,3938.8,3937.8,0.7595]
[1734463758010,0.12512654,3938.9,3937.8,0.7595]
[1734463758511,0.12512654,3938.9,3937.6,0.7595]
[1734463758720,0.12512654,3938.9,3937.8,0.7595]
[1734463759422,0.12512654,3938.9,3937.5,2.17021274]
[1734463759423,0.12512654,3938.9,3937.9,0.87067938]
[1734463759719,0.12512654,3938.9,3937.9,0.7595]
[1734463760213,0.12512654,3938.9,3938.0,0.1112653]
[1734463760447,0.12512654,3938.9,3937.5,2.17021274]
[1734463760728,0.12512654,3938.9,3937.7,0.7595]
[1734463760915,0.12512654,3938.9,3937.9,0.7595]
[1734463761113,0.12512654,3938.9,3938.1,0.7595]
[1734463763282,0.55,3938.8,3937.2,0.7595]
[1734463763480,0.55,3938.8,3937.4,0.7595]
[1734463763783,0.87138465,3938.8,3937.5,0.11130132]
[1734463763887,0.87138465,3938.8,3937.5,0.87080371]
[1734463764081,0.87138465,3938.8,3937.7,0.7595]
[1734463764385,2.53891,3938.7,3937.7,0.7595]
[1734463764584,0.87138465,3938.8,3937.7,0.7595]
[1734463764791,0.55,3938.6,3937.7,0.7595]
[1734463765316,0.55,3938.8,3937.7,0.7595]
[1734463766711,1.59620636,3938.8,3937.7,0.7595]
[1734463767023,0.55,3938.8,3937.7,0.7595]
[1734463767327,0.32906424,3938.7,3937.7,0.7595]
[1734463771784,1.59620636,3938.6,3937.7,0.7595]
[1734463771989,1.04620636,3938.5,3937.7,0.7595]
[1734463772332,1.04620636,3938.4,3937.7,0.7595]
[1734463773028,1.59620636,3938.6,3937.7,0.7595]
[1734463773211,0.60334702,3938.5,3937.7,0.7595]
[1734463773458,1.64955338,3938.5,3937.7,0.7595]
[1734463774495,1.04620636,3938.4,3937.7,0.7595]
[1734463775115,4.04620636,3938.4,3937.7,0.7595]
[1734463775297,1.04620636,3938.3,3937.7,0.7595]
[1734463775505,1.04620636,3938.5,3937.7,0.7595]
[1734463775827,1.04620636,3938.4,3937.7,0.7595]
[1734463776027,4.04620636,3938.6,3937.7,0.7595]
[1734463776342,1.04620636,3938.4,3937.7,0.7595]
[1734463777416,1.04620636,3938.3,3937.7,0.7595]
[1734463779624,1.04620636,3938.4,3937.7,0.7595]
[1734463780254,1.04620636,3938.3,3937.7,0.7595]
[1734463780736,1.04620636,3938.4,3937.7,0.7595]
[1734463783539,1.04620636,3938.4,3937.8,0.11140037]
[1734463783854,1.04620636,3938.4,3937.7,0.7595]
[1734463784337,1.04620636,3938.4,3937.8,0.11142056]
[1734463784519,1.04620636,3938.4,3937.7,0.7595]
[1734463784929,1.04620636,3938.4,3937.8,0.11141682]
[1734463785140,1.04620636,3938.4,3937.7,0.7595]
[1734463785348,1.04620636,3938.4,3937.8,0.11142937]
[1734463785543,1.04620636,3938.4,3937.7,0.7595]
[1734463785766,1.04620636,3938.6,3937.8,0.87482745]
[1734463786055,1.04620636,3938.7,3938.0,0.7634]
[1734463786381,1.04620636,3938.7,3938.1,0.11141862]
[1734463786765,1.04620636,3938.7,3938.0,0.7634]
[1734463786857,1.04620636,3938.7,3938.1,0.11141586]
[1734463787063,1.04620636,3938.6,3938.0,0.7634]
[1734463787245,1.04620636,3938.7,3938.1,0.11141759]
[1734463787453,1.04620636,3938.6,3938.0,0.7634]
[1734463787661,1.04620636,3938.7,3938.0,0.7634]
[1734463788366,1.04620636,3938.7,3938.1,0.11140914]
[1734463788529,1.04620636,3938.6,3938.0,0.7634]
[1734463788738,1.04620636,3938.7,3938.1,0.11140646]
[1734463788950,1.04620636,3938.7,3938.0,0.7634]
[1734463789148,1.04620636,3938.7,3938.1,0.11140495]
[1734463789355,1.04620636,3938.7,3938.0,0.7634]
[1734463789570,1.04620636,3938.7,3938.1,0.11140361]
[1734463789865,1.04620636,3938.7,3938.0,0.7634]
[1734463790063,1.04620636,3938.7,3938.1,0.11140091]
[1734463790270,1.04620636,3938.7,3938.0,0.7634]
[1734463790472,1.04620636,3938.6,3938.1,0.1114]
[1734463790668,1.04620636,3938.6,3938.0,0.7634]
[1734463791165,1.04620636,3938.6,3938.1,0.11140181]
[1734463791341,1.30775795,3938.6,3938.0,0.7634]
[1734463791541,1.04620636,3938.5,3938.0,0.7634]
[1734463791743,1.04620636,3938.4,3938.0,0.7634]
[1734463792038,1.04620636,3938.2,3938.0,0.7634]
[1734463792230,1.04620636,3938.1,3938.0,0.7634]
[1734463792644,1.04620636,3938.2,3938.0,0.7634]
[1734463793584,1.04620636,3938.4,3938.0,0.7634]
[1734463793970,1.04620636,3938.3,3937.5,0.8128]
[1734463794271,1.04620636,3938.3,3937.7,0.8128]
[1734463794457,1.56930955,3938.5,3937.8,0.11142088]
[1734463794458,1.04620636,3938.4,3937.8,0.11142088]
[1734463794658,1.04620636,3938.4,3937.9,0.11141257]
[1734463794840,1.04620636,3938.4,3937.7,0.8128]
[1734463795039,1.04620636,3938.4,3937.9,0.8128]
[1734463795284,1.04620636,3938.5,3937.9,0.8128]
[1734463795440,1.04620636,3938.4,3937.9,0.8128]
[1734463798190,1.04620636,3938.5,3937.9,0.8128]
[1734463798363,1.04620636,3938.5,3938.0,0.11140748]
[1734463798551,1.04620636,3938.5,3937.9,0.8128]
[1734463799074,1.04620636,3938.5,3938.0,0.11140762]
[1734463799272,1.04620636,3938.5,3937.9,0.8128]
[1734463799582,1.04620636,3938.5,3938.0,0.11140592]
[1734463799884,1.04620636,3938.5,3937.9,0.8128]
[1734463800546,1.04620636,3938.5,3938.0,0.11140127]
[1734463800747,1.04620636,3938.5,3937.9,0.8128]
[1734463801008,1.04620636,3938.5,3938.0,0.11139668]
[1734463801157,1.04620636,3938.5,3937.9,0.8128]
[1734463801356,1.04620636,3938.5,3938.0,0.11140311]
[1734463801666,1.04620636,3938.5,3937.5,1.05151093]
[1734463801667,1.04620636,3938.1,3937.4,0.8128]
[1734463801877,1.05739311,3937.9,3937.4,0.8128]
[1734463802251,1.05739311,3937.9,3937.5,0.11140672]
[1734463802690,1.05739311,3937.7,3937.5,0.11140672]
[1734463802992,0.55,3937.6,3937.5,0.11140672]
[1734463803295,2.64241273,3937.6,3937.5,0.11140672]
[1734463803598,3.40481273,3937.6,3937.5,0.11140672]
[1734463803773,6.85201,3937.6,3937.5,0.11140672]
[1734463803986,7.51657612,3937.6,3937.5,0.11140672]
[1734463804306,7.15741018,3937.6,3937.5,0.11140672]
[1734463804756,0.55,3937.5,3936.8,0.8137]
[1734463804951,0.55,3937.5,3935.8,2.17021274]
[1734463804952,1.05591991,3937.0,3935.9,0.8137]
[1734463805147,1.05591991,3936.9,3936.0,0.11126183]
[1734463805443,1.05591991,3936.9,3936.1,0.11126295]
[1734463805616,1.81831991,3936.8,3935.9,0.8137]
[1734463805894,1.05591991,3936.6,3935.9,0.8137]
[1734463806189,1.05591991,3936.4,3935.9,0.8137]
[1734463806396,1.74525439,3936.7,3935.1,0.1631037]
[1734463806397,1.05591991,3936.5,3935.2,0.8137]
[1734463806601,1.05591991,3936.5,3935.3,0.11114555]
[1734463806768,1.05591991,3936.5,3935.5,0.8137]
[1734463807088,1.05591991,3936.2,3935.6,0.11115744]
[1734463807391,1.05591991,3936.3,3935.5,0.8137]
[1734463807553,1.05591991,3936.3,3935.6,0.11106055]
[1734463807757,1.05591991,3936.3,3935.5,0.8137]
[1734463807959,1.05591991,3936.4,3935.6,0.11105812]
[1734463808165,1.05591991,3936.8,3935.8,2.98391274]
[1734463808510,1.05591991,3937.3,3936.3,0.8137]
[1734463808702,1.05591991,3937.4,3936.4,0.11105872]
[1734463808909,1.05591991,3937.3,3936.5,0.11105872]
[1734463809060,1.05591991,3937.3,3936.3,0.8137]
[1734463809262,1.05591991,3937.3,3936.4,0.11103353]
[1734463809476,1.05591991,3937.3,3936.5,0.30949463]
[1734463809992,1.05591991,3937.4,3936.6,0.7806]
[1734463810861,1.05591991,3937.5,3936.6,0.7806]
[1734463811211,1.05591991,3937.0,3935.6,0.7806]
[1734463811374,1.05591991,3936.9,3935.7,0.1109978]
[1734463811590,1.05591991,3936.6,3935.6,0.7806]
[1734463812869,1.05591991,3936.7,3935.6,0.7806]
[1734463813581,1.92529985,3936.9,3935.6,0.7806]
[1734463813582,1.05591991,3936.8,3935.6,0.7806]
[1734463813990,1.05591991,3936.8,3935.6,25.3704]
[1734463814199,1.05591991,3936.9,3935.9,0.7806]
[1734463814509,1.05591991,3937.5,3936.3,0.7806]
[1734463814669,1.05591991,3937.6,3936.3,0.7806]
[1734463815098,1.05591991,3937.7,3936.3,0.7806]
[1734463815179,1.05591991,3937.8,3936.4,0.110868]
[1734463815365,1.05591991,3937.8,3936.5,0.7806]
[1734463815571,0.55,3937.7,3936.5,1.07568127]
[1734463816011,1.60591991,3937.7,3936.5,1.07568127]
[1734463816316,1.05591991,3937.7,3936.6,0.7806]
[1734463816503,1.49415521,3937.8,3936.6,0.7806]
[1734463816695,0.4382353,3937.8,3936.6,0.7806]
[1734463818233,0.56808235,3937.8,3936.6,0.7806]
[1734463818612,1.05591991,3937.9,3936.7,0.7914]
[1734463818803,1.05591991,3938.2,3936.8,0.11091396]
[1734463818999,1.05591991,3938.2,3936.9,0.7914]
[1734463819401,1.05591991,3938.2,3937.0,0.90232298]
[1734463819707,1.05591991,3938.2,3937.0,0.7914]
[1734463820277,1.18191062,3938.3,3937.1,0.11093996]
[1734463820587,0.12599071,3938.3,3937.2,0.90233545]
[1734463820786,1.01675159,3938.5,3937.2,0.90233545]
[1734463820787,1.05591991,3938.5,3937.2,0.7914]
[1734463820982,1.05591991,3938.4,3937.4,0.7914]
[1734463821576,1.05591991,3938.5,3937.4,0.7914]
[1734463822596,1.05591991,3938.5,3937.4,2.96161274]
[1734463823928,1.05591991,3938.6,3937.9,0.7914]
[1734463824084,1.05591991,3938.8,3938.2,2.17021274]
[1734463824281,1.74465067,3939.1,3938.2,2.17021274]
[1734463824282,1.05591991,3938.9,3938.2,2.17021274]
[1734463825678,1.05591991,3939.0,3938.2,2.17021274]
[1734463826074,1.05591991,3938.9,3938.0,0.29616127]
[1734463826275,1.05591991,3939.0,3937.9,0.7914]
[1734463826695,1.05591991,3938.9,3937.9,0.7914]
[1734463827220,1.18304306,3939.0,3937.9,0.7914]
[1734463827523,1.05591991,3938.9,3937.9,0.7914]
[1734463827732,1.18304306,3939.0,3937.9,0.7914]
[1734463828024,1.18304306,3939.0,3937.9,1.08756127]
[1734463828317,1.05591991,3938.9,3937.9,1.08756127]
[1734463828500,1.05591991,3938.9,3937.9,0.7914]
[1734463830407,0.55,3938.8,3937.9,0.7914]
[1734463830604,1.60591991,3938.8,3937.9,0.7914]
[1734463830799,1.60591991,3938.8,3937.0,2.17021274]
[1734463830800,1.05591991,3938.4,3937.1,0.7914]
[1734463831255,1.05591991,3938.3,3937.1,0.7914]
[1734463831391,1.05591991,3938.2,3937.1,0.7914]
[1734463831692,1.05591991,3938.0,3937.1,0.7914]
[1734463831812,1.05591991,3938.1,3937.1,0.7914]
[1734463832049,1.58387987,3938.2,3937.1,0.7914]
[1734463832050,1.05591991,3938.0,3937.1,0.7914]
[1734463832257,1.05591991,3938.1,3937.1,0.7914]
[1734463832424,1.05591991,3938.1,3937.1,1.08756127]
[1734463834484,1.05591991,3938.0,3937.1,1.08756127]
[1734463834611,1.05591991,3938.0,3937.1,0.7914]
[1734463835039,2.39971991,3937.9,3937.1,0.7914]
[1734463835245,1.05591991,3937.8,3937.1,0.7914]
[1734463836019,1.05591991,3937.7,3936.6,2.17021274]
[1734463836259,1.3438,3937.9,3936.7,0.8216]
[1734463836260,1.60591991,3937.2,3936.7,0.8216]
[1734463836471,0.86897998,3937.2,3936.4,0.8216]
[1734463836691,0.55,3937.2,3936.4,0.8216]
[1734463837088,1.05591991,3937.4,3936.4,0.8216]
[1734463837243,1.05591991,3937.4,3935.7,0.02540399]
[1734463837244,1.05591991,3937.4,3936.7,0.8216]
[1734463837435,1.05591991,3937.5,3936.7,0.8216]
[1734463837867,2.90563983,3937.9,3936.7,0.8216]
[1734463837868,1.05591991,3937.6,3936.7,0.8216]
[1734463838048,1.05591991,3937.5,3936.7,0.8216]
[1734463840145,7.19042616,3937.9,3936.7,0.8216]
[1734463840146,1.60591991,3937.4,3936.7,0.8216]
[1734463840730,0.55,3937.2,3936.7,0.8216]
[1734463841142,0.55,3937.2,3935.8,2.17021274]
[1734463841387,2.39971991,3937.2,3935.9,0.93264837]
[1734463841646,1.05591991,3937.1,3936.0,0.31028611]
[1734463841810,2.39971991,3937.2,3936.0,0.31028611]
[1734463842105,1.05591991,3937.0,3935.9,0.8216]
[1734463842260,0.55,3936.9,3935.9,0.8216]
[1734463844100,1.60591991,3936.9,3935.9,0.8216]
[1734463844958,1.60591991,3936.7,3935.9,0.8216]
[1734463845187,1.3438,3936.5,3935.9,0.8216]
[1734463845418,2.39971991,3936.5,3935.9,0.8216]
[1734463845568,1.60591991,3936.5,3935.9,0.8216]
[1734463845754,0.55,3936.5,3935.9,0.8216]
[1734463845963,1.05591991,3936.6,3936.0,0.02540856]
[1734463846162,1.05591991,3937.1,3936.2,0.8216]
[1734463846607,1.05591991,3937.2,3936.2,0.8216]
[1734463846955,2.11183983,3937.5,3936.2,0.8216]
[1734463846956,1.05591991,3937.3,3936.2,0.8216]
[1734463847163,1.05591991,3937.4,3936.2,0.8216]
[1734463847363,1.05591991,3937.3,3936.2,0.8216]
[1734463848413,1.31989989,3937.2,3936.2,0.8216]
[1734463848621,1.05591991,3937.1,3936.2,0.8216]
[1734463850594,1.60591991,3937.0,3936.2,0.8216]
[1734463851218,1.05591991,3936.9,3936.2,0.8216]
[1734463851358,2.42601991,3937.0,3936.2,0.8216]
[1734463851710,0.55,3936.7,3935.7,0.7982]
[1734463851991,1.60591991,3936.4,3935.7,0.7982]
[1734463853400,1.60591991,3936.2,3935.6,25.3704]
[1734463854404,0.55,3936.2,3935.6,25.3704]
[1734463854980,1.05591991,3936.3,3935.6,25.3704]
[1734463855371,1.60591991,3936.3,3935.6,25.3704]
[1734463855576,0.55,3936.1,3935.6,25.3704]
[1734463857807,4.05591991,3936.3,3935.6,25.3704]
[1734463857808,0.55,3936.3,3935.6,25.3704]
[1734463857970,1.60591991,3936.3,3935.6,25.3704]
[1734463858603,0.55,3936.3,3935.6,25.3704]
[1734463858782,1.60591991,3936.3,3935.6,25.3704]
[1734463859309,4.05591991,3936.5,3935.6,25.3704]
[1734463859473,1.05591991,3936.5,3935.6,25.3704]
[1734463859806,0.55,3936.5,3935.6,25.3704]
[1734463860515,0.55,3936.5,3935.7,0.7982]
[1734463860926,0.55,3936.6,3935.7,0.7982]
[1734463861134,0.55,3936.7,3935.7,0.7982]
[1734463862279,1.60591991,3936.7,3935.7,0.7982]
[1734463862535,4.14610991,3936.7,3935.7,0.7982]
[1734463862833,0.55,3936.5,3935.7,0.7982]
[1734463863536,4.05591991,3936.7,3935.7,0.7982]
[1734463863537,0.55,3936.6,3935.7,0.7982]
[1734463863987,0.54162353,3936.6,3935.7,0.7982]
[1734463864191,1.59754344,3936.6,3935.7,0.7982]
[1734463864375,0.54162353,3936.6,3935.7,0.7982]
[1734463866399,1.59754344,3936.6,3935.7,0.7982]
[1734463867515,0.54162353,3936.6,3935.7,0.7982]
[1734463867845,1.59754344,3936.6,3935.7,0.7982]
[1734463868417,0.55,3936.8,3935.7,0.7982]
[1734463868927,1.05591991,3936.9,3935.7,0.7982]
[1734463869107,0.55,3936.7,3935.7,0.7982]
[1734463869313,1.60591991,3936.7,3935.7,0.7982]
[1734463869631,0.55,3936.3,3935.6,25.3704]
[1734463870612,0.55,3936.1,3935.6,25.3704]
[1734463871335,1.60591991,3935.8,3935.6,25.3704]
[1734463871534,0.7819,3935.7,3935.6,25.3704]
[1734463871695,1.3319,3935.7,3935.6,25.3704]
[1734463872803,0.55,3935.7,3935.6,25.3704]
[1734463873031,1.05591991,3936.0,3935.6,25.3704]
[1734463873235,1.05591991,3936.2,3935.6,25.3704]
[1734463873541,1.05591991,3936.5,3935.7,0.7667]
[1734463873849,1.05591991,3936.6,3935.7,0.7667]
[1734463874441,1.05591991,3936.5,3935.7,0.7667]
[1734463874641,0.55,3936.4,3935.7,0.7667]
[1734463875452,1.60591991,3936.4,3935.7,0.7667]
[1734463876464,1.05591991,3936.3,3935.7,0.7667]
[1734463877471,1.05591991,3936.2,3935.7,0.7667]
[1734463877631,1.05591991,3936.3,3935.7,0.7667]
[1734463878524,1.05591991,3936.2,3935.7,0.7667]
[1734463878771,1.05591991,3936.2,3935.6,25.3704]
[1734463878772,1.58387987,3935.8,3935.6,25.3704]
[1734463879029,2.13387987,3935.7,3935.6,25.3704]
[1734463879271,0.55,3935.7,3935.6,25.3704]
[1734463879467,3.19117269,3935.7,3935.6,25.3704]
[1734463879769,2.29683446,3935.7,3935.6,25.3704]
[1734463880072,0.55,3935.7,3935.6,25.3704]
[1734463880270,6.55806941,3935.7,3935.6,25.3704]
[1734463880774,8.30490387,3935.7,3935.6,25.3704]
[1734463882012,9.08680387,3935.7,3935.6,25.3704]
[1734463882168,6.44563118,3935.7,3935.6,25.3704]
[1734463882382,3.90479118,3935.7,3935.6,25.3704]
[1734463882532,3.97224328,3935.7,3935.6,25.3704]
[1734463882938,3.97318137,3935.7,3935.6,25.3704]
[1734463883455,3.9732316,3935.7,3935.6,25.3704]
[1734463883756,3.07873446,3935.7,3935.6,25.3704]
[1734463883932,5.72006606,3935.7,3935.6,25.3704]